[Event "Titled Tuesday Blitz June 6 Late 2023"]
[White "Hambleton, Aman"]
[Black "Fiorito, Francisco"]
[WhiteFideId "2606577"]
[BlackFideId "180165"]
[WhiteElo "2511"]
[BlackElo "2319"]
[Result "1/2-1/2"]
[Round "7"]
[TimeControl "180+2"]
[Date "2023.06.07"]
[WhiteClock "0:00:03"]
[BlackClock "0:00:08"]
[Board "47"]

1. d4 {[%clk 0:03:00]}  Nf6 {[%clk 0:02:59]} 2. Bf4 {[%clk 0:03:01]}  c5 {[%clk 0:02:56]} 3. e3 {[%clk 0:03:00]}  d5 {[%clk 0:02:49]} 4. c3 {[%clk 0:03:00]}  Qb6 {[%clk 0:02:48]} 5. Qb3 {[%clk 0:03:00]}  c4 {[%clk 0:02:48]} 6. Qc2 {[%clk 0:03:01]}  Nc6 {[%clk 0:02:45]} 7. Nd2 {[%clk 0:03:01]}  g6 {[%clk 0:02:42]} 8. e4 {[%clk 0:03:01]}  Nxe4 {[%clk 0:02:20]} 9. Nxe4 {[%clk 0:02:59]}  dxe4 {[%clk 0:02:20]} 10. Bxc4 {[%clk 0:03:00]}  Bg7 {[%clk 0:02:18]} 11. Ne2 {[%clk 0:03:00]}  O-O {[%clk 0:02:18]} 12. Be3 {[%clk 0:02:56]}  Na5 {[%clk 0:02:09]} 13. Bd5 {[%clk 0:02:56]}  Bf5 {[%clk 0:01:54]} 14. Ng3 {[%clk 0:02:56]}  Rac8 {[%clk 0:01:51]} 15. Qe2 {[%clk 0:01:52]}  e6 {[%clk 0:01:25]} 16. Bxe4 {[%clk 0:01:52]}  Bxe4 {[%clk 0:01:26]} 17. Nxe4 {[%clk 0:01:52]}  Nc4 {[%clk 0:01:26]} 18. Rb1 {[%clk 0:01:15]}  Qc6 {[%clk 0:00:58]} 19. Qf3 {[%clk 0:00:43]}  Qa4 {[%clk 0:00:28]} 20. a3 {[%clk 0:00:37]}  Qc2 {[%clk 0:00:22]} 21. O-O {[%clk 0:00:28]}  b6 {[%clk 0:00:09]} 22. Nf6+ {[%clk 0:00:08]}  Bxf6 {[%clk 0:00:08]} 23. Qxf6 {[%clk 0:00:08]}  Nxe3 {[%clk 0:00:08]} 24. fxe3 {[%clk 0:00:09]}  Qe4 {[%clk 0:00:07]} 25. Qf4 {[%clk 0:00:04]}  Qc2 {[%clk 0:00:06]} 26. Qf2 {[%clk 0:00:04]}  Qe4 {[%clk 0:00:07]} 27. Qf3 {[%clk 0:00:05]}  Qc2 {[%clk 0:00:07]} 28. e4 {[%clk 0:00:05]}  a5 {[%clk 0:00:04]} 29. e5 {[%clk 0:00:03]}  b5 {[%clk 0:00:04]} 30. Qf2 {[%clk 0:00:03]}  Qb3 {[%clk 0:00:03]} 31. Rbe1 {[%clk 0:00:02]}  b4 {[%clk 0:00:04]} 32. axb4 {[%clk 0:00:03]}  axb4 {[%clk 0:00:05]} 33. cxb4 {[%clk 0:00:03]}  Qxb4 {[%clk 0:00:05]} 34. Rd1 {[%clk 0:00:02]}  Qb3 {[%clk 0:00:05]} 35. Rd2 {[%clk 0:00:02]}  Rcd8 {[%clk 0:00:04]} 36. Rfd1 {[%clk 0:00:02]}  Rd5 {[%clk 0:00:04]} 37. h3 {[%clk 0:00:02]}  Rfd8 {[%clk 0:00:04]} 38. Rd3 {[%clk 0:00:02]}  Qb7 {[%clk 0:00:04]} 39. R1d2 {[%clk 0:00:02]}  Rb5 {[%clk 0:00:04]} 40. Kh2 {[%clk 0:00:02]}  Rd7 {[%clk 0:00:04]} 41. Qe2 {[%clk 0:00:01]}  Rb3 {[%clk 0:00:05]} 42. Rxb3 {[%clk 0:00:01]}  Qxb3 {[%clk 0:00:05]} 43. Qd3 {[%clk 0:00:01]}  Qb7 {[%clk 0:00:06]} 44. h4 {[%clk 0:00:02]}  h5 {[%clk 0:00:05]} 45. Qe3 {[%clk 0:00:02]}  Qd5 {[%clk 0:00:05]} 46. Qf4 {[%clk 0:00:02]}  Qb7 {[%clk 0:00:05]} 47. Qe3 {[%clk 0:00:02]}  Qb6 {[%clk 0:00:05]} 48. Qc3 {[%clk 0:00:02]}  Qb7 {[%clk 0:00:05]} 49. b4 {[%clk 0:00:02]}  Qe4 {[%clk 0:00:06]} 50. Qg3 {[%clk 0:00:01]}  Rxd4 {[%clk 0:00:06]} 51. Rxd4 {[%clk 0:00:01]}  Qxd4 {[%clk 0:00:07]} 52. b5 {[%clk 0:00:01]}  Qb4 {[%clk 0:00:05]} 53. Qd3 {[%clk 0:00:01]}  Qxh4+ {[%clk 0:00:05]} 54. Kg1 {[%clk 0:00:02]}  Qe1+ {[%clk 0:00:06]} 55. Qf1 {[%clk 0:00:01]}  Qe3+ {[%clk 0:00:04]} 56. Kh1 {[%clk 0:00:01]}  Qxe5 {[%clk 0:00:04]} 57. Qb1 {[%clk 0:00:01]}  Qg3 {[%clk 0:00:03]} 58. b6 {[%clk 0:00:01]}  Qh4+ {[%clk 0:00:04]} 59. Kg1 {[%clk 0:00:02]}  Qd4+ {[%clk 0:00:04]} 60. Kh1 {[%clk 0:00:02]}  Qh4+ {[%clk 0:00:04]} 61. Kg1 {[%clk 0:00:03]}  Qd4+ {[%clk 0:00:05]} 62. Kf1 {[%clk 0:00:04]}  Qf4+ {[%clk 0:00:06]} 63. Ke2 {[%clk 0:00:04]}  Qe5+ {[%clk 0:00:06]} 64. Kd1 {[%clk 0:00:04]}  Qd5+ {[%clk 0:00:07]} 65. Kc1 {[%clk 0:00:04]}  Qc6+ {[%clk 0:00:07]} 66. Kd1 {[%clk 0:00:03]}  Qd5+ {[%clk 0:00:07]} 67. Ke1 {[%clk 0:00:04]}  Qe5+ {[%clk 0:00:07]} 68. Kd2 {[%clk 0:00:04]}  Qd5+ {[%clk 0:00:07]} 69. Kc3 {[%clk 0:00:03]}  Qc5+ {[%clk 0:00:07]} 70. Kd2 {[%clk 0:00:02]}  Qd5+ {[%clk 0:00:08]} 71. Ke3 {[%clk 0:00:02]}  Qe5+ {[%clk 0:00:08]} 72. Kf3 {[%clk 0:00:02]}  Qd5+ {[%clk 0:00:09]} 73. Qe4 {[%clk 0:00:01]}  Qb3+ {[%clk 0:00:09]} 74. Qe3 {[%clk 0:00:02]}  Qd5+ {[%clk 0:00:09]} 75. Kf2 {[%clk 0:00:02]}  Qa2+ {[%clk 0:00:08]} 76. Kg3 {[%clk 0:00:02]}  Kh7 {[%clk 0:00:07]} 77. Qf3 {[%clk 0:00:02]}  e5 {[%clk 0:00:06]} 78. b7 {[%clk 0:00:02]}  Qb2 {[%clk 0:00:06]} 79. Qc6 {[%clk 0:00:02]}  h4+ {[%clk 0:00:05]} 80. Kh2 {[%clk 0:00:01]}  h3 {[%clk 0:00:05]} 81. Kxh3 {[%clk 0:00:02]}  Kg7 {[%clk 0:00:05]} 82. Qc7 {[%clk 0:00:02]}  Qb3+ {[%clk 0:00:05]} 83. Kh2 {[%clk 0:00:02]}  Qe3 {[%clk 0:00:05]} 84. b8=Q {[%clk 0:00:02]}  Qf4+ {[%clk 0:00:05]} 85. Kh3 {[%clk 0:00:02]}  Qh6+ {[%clk 0:00:05]} 86. Kg3 {[%clk 0:00:01]}  Qf4+ {[%clk 0:00:06]} 87. Kh3 {[%clk 0:00:02]}  Qh6+ {[%clk 0:00:07]} 88. Kg3 {[%clk 0:00:02]}  Qf4+ {[%clk 0:00:08]} 89. Kh3 {[%clk 0:00:03]} 1/2-1/2


[Site "https://www.chess.com"]

[Event "Titled Tuesday Blitz June 6 Late 2023"]
[White "Papasimakopoulos, Alexandros"]
[Black "Becerra, Juan David"]
[WhiteFideId "4244125"]
[BlackFideId "4404998"]
[WhiteElo "2359"]
[BlackElo "2304"]
[Result "0-1"]
[Round "7"]
[TimeControl "180+2"]
[Date "2023.06.07"]
[WhiteClock "0:00:16"]
[BlackClock "0:00:30"]
[Board "48"]

1. Nf3 {[%clk 0:03:00]}  d5 {[%clk 0:02:59]} 2. b3 {[%clk 0:03:00]}  Bg4 {[%clk 0:02:55]} 3. Ne5 {[%clk 0:02:59]}  Bf5 {[%clk 0:02:55]} 4. Bb2 {[%clk 0:02:59]}  f6 {[%clk 0:02:55]} 5. Nf3 {[%clk 0:02:52]}  e5 {[%clk 0:02:56]} 6. e3 {[%clk 0:02:51]}  Bd6 {[%clk 0:02:47]} 7. d4 {[%clk 0:02:51]}  e4 {[%clk 0:02:43]} 8. Nfd2 {[%clk 0:02:51]}  Ne7 {[%clk 0:02:41]} 9. c4 {[%clk 0:02:51]}  c6 {[%clk 0:02:39]} 10. Ba3 {[%clk 0:02:51]}  Bxa3 {[%clk 0:02:17]} 11. Nxa3 {[%clk 0:02:52]}  O-O {[%clk 0:02:17]} 12. Nab1 {[%clk 0:02:49]}  Qd7 {[%clk 0:02:10]} 13. Nc3 {[%clk 0:02:49]}  Bg4 {[%clk 0:02:08]} 14. Be2 {[%clk 0:02:46]}  Bxe2 {[%clk 0:02:07]} 15. Qxe2 {[%clk 0:02:47]}  f5 {[%clk 0:02:08]} 16. g3 {[%clk 0:02:47]}  Na6 {[%clk 0:01:51]} 17. a3 {[%clk 0:02:46]}  Kh8 {[%clk 0:01:47]} 18. h4 {[%clk 0:02:42]}  c5 {[%clk 0:01:47]} 19. dxc5 {[%clk 0:02:33]}  d4 {[%clk 0:01:38]} 20. exd4 {[%clk 0:02:30]}  Qxd4 {[%clk 0:01:36]} 21. Rc1 {[%clk 0:02:30]}  Nxc5 {[%clk 0:01:34]} 22. O-O {[%clk 0:02:27]}  Nd3 {[%clk 0:01:17]} 23. Rc2 {[%clk 0:02:26]}  Ng6 {[%clk 0:01:17]} 24. Nd5 {[%clk 0:02:07]}  Nge5 {[%clk 0:01:14]} 25. Kg2 {[%clk 0:02:01]}  Rad8 {[%clk 0:01:13]} 26. Qe3 {[%clk 0:01:47]}  Rxd5 {[%clk 0:00:50]} 27. cxd5 {[%clk 0:01:46]}  Qxd5 {[%clk 0:00:51]} 28. Nc4 {[%clk 0:01:37]}  f4 {[%clk 0:00:38]} 29. gxf4 {[%clk 0:01:13]}  Nxf4+ {[%clk 0:00:33]} 30. Kh1 {[%clk 0:01:12]}  Nf3 {[%clk 0:00:33]} 31. Nd2 {[%clk 0:00:32]}  Qf5 {[%clk 0:00:30]} 32. Nxf3 {[%clk 0:00:15]}  Qh3+ {[%clk 0:00:30]} 33. Nh2 {[%clk 0:00:16]}  Qg2# {[%clk 0:00:30]} 0-1


[Site "https://www.chess.com"]

[Event "Titled Tuesday Blitz June 6 Late 2023"]
[White "Moral Garcia, Serafin"]
[Black "Sieciechowicz, Marcin"]
[WhiteFideId "2201925"]
[BlackFideId "1130170"]
[WhiteElo "2274"]
[BlackElo "2301"]
[Result "1-0"]
[Round "7"]
[TimeControl "180+2"]
[Date "2023.06.07"]
[WhiteClock "0:00:18"]
[BlackClock "0:00:07"]
[Board "49"]

1. e4 {[%clk 0:03:00]}  c5 {[%clk 0:02:59]} 2. Nf3 {[%clk 0:03:00]}  d6 {[%clk 0:03:00]} 3. d4 {[%clk 0:02:59]}  cxd4 {[%clk 0:03:01]} 4. Nxd4 {[%clk 0:02:59]}  Nf6 {[%clk 0:03:01]} 5. Nc3 {[%clk 0:02:59]}  a6 {[%clk 0:03:02]} 6. Be3 {[%clk 0:02:59]}  e5 {[%clk 0:03:02]} 7. Nf3 {[%clk 0:02:59]}  Be7 {[%clk 0:03:01]} 8. Bc4 {[%clk 0:02:59]}  Be6 {[%clk 0:03:02]} 9. Bb3 {[%clk 0:02:59]}  Nc6 {[%clk 0:02:57]} 10. O-O {[%clk 0:02:58]}  Rc8 {[%clk 0:02:57]} 11. Bg5 {[%clk 0:02:53]}  Qd7 {[%clk 0:02:56]} 12. Bxf6 {[%clk 0:02:52]}  Bxf6 {[%clk 0:02:57]} 13. Nd5 {[%clk 0:02:52]}  Bd8 {[%clk 0:02:52]} 14. c3 {[%clk 0:02:51]}  O-O {[%clk 0:02:47]} 15. Ne1 {[%clk 0:02:48]}  Kh8 {[%clk 0:02:47]} 16. Nc2 {[%clk 0:02:46]}  f5 {[%clk 0:02:46]} 17. exf5 {[%clk 0:02:45]}  Bxf5 {[%clk 0:02:46]} 18. Nce3 {[%clk 0:02:45]}  Be6 {[%clk 0:02:47]} 19. Qd3 {[%clk 0:02:41]}  Qf7 {[%clk 0:02:38]} 20. f4 {[%clk 0:02:31]}  Qg8 {[%clk 0:01:51]} 21. Qe4 {[%clk 0:02:08]}  exf4 {[%clk 0:01:40]} 22. Rxf4 {[%clk 0:02:06]}  Rxf4 {[%clk 0:01:40]} 23. Qxf4 {[%clk 0:02:03]}  Ne5 {[%clk 0:01:37]} 24. Rf1 {[%clk 0:01:56]}  h6 {[%clk 0:01:37]} 25. Qe4 {[%clk 0:01:49]}  Bg5 {[%clk 0:01:32]} 26. Nf5 {[%clk 0:01:36]}  Rf8 {[%clk 0:01:15]} 27. h4 {[%clk 0:01:14]}  Bd8 {[%clk 0:00:55]} 28. Rf4 {[%clk 0:00:53]}  Qh7 {[%clk 0:00:34]} 29. Nxd6 {[%clk 0:00:45]}  Rxf4 {[%clk 0:00:24]} 30. Qxf4 {[%clk 0:00:24]}  Qb1+ {[%clk 0:00:22]} 31. Qf1 {[%clk 0:00:24]}  Qxf1+ {[%clk 0:00:13]} 32. Kxf1 {[%clk 0:00:24]}  b5 {[%clk 0:00:09]} 33. h5 {[%clk 0:00:20]}  Nd3 {[%clk 0:00:09]} 34. Nb4 {[%clk 0:00:18]}  Bxb3 {[%clk 0:00:08]} 35. axb3 {[%clk 0:00:18]}  Nxb4 {[%clk 0:00:07]} 36. cxb4 {[%clk 0:00:18]}  Be7 {[%clk 0:00:08]} 37. Ne4 {[%clk 0:00:18]}  Bxb4 {[%clk 0:00:08]} 38. Ke2 {[%clk 0:00:19]}  Kg8 {[%clk 0:00:07]} 39. Kd3 {[%clk 0:00:19]}  Kf7 {[%clk 0:00:07]} 40. Kd4 {[%clk 0:00:19]}  Ke6 {[%clk 0:00:06]} 41. Nc5+ {[%clk 0:00:18]}  Kf5 {[%clk 0:00:07]} 42. Nxa6 {[%clk 0:00:18]}  Kg4 {[%clk 0:00:07]} 43. Nxb4 {[%clk 0:00:18]} 1-0


[Site "https://www.chess.com"]

[Event "Titled Tuesday Blitz June 6 Late 2023"]
[White "Nazari, Arad"]
[Black "Krsnik Cohar, Ivan Vihor"]
[WhiteFideId "12577324"]
[BlackFideId "14520044"]
[WhiteElo "2175"]
[BlackElo "2414"]
[Result "1-0"]
[Round "7"]
[TimeControl "180+2"]
[Date "2023.06.07"]
[WhiteClock "0:00:17"]
[BlackClock "0:00:11"]
[Board "50"]

1. e4 {[%clk 0:03:00]}  c5 {[%clk 0:03:00]} 2. Nf3 {[%clk 0:03:01]}  g6 {[%clk 0:03:01]} 3. d4 {[%clk 0:02:57]}  cxd4 {[%clk 0:03:02]} 4. Nxd4 {[%clk 0:02:58]}  Nf6 {[%clk 0:03:02]} 5. f3 {[%clk 0:02:50]}  Nc6 {[%clk 0:03:02]} 6. c4 {[%clk 0:02:49]}  Bg7 {[%clk 0:03:02]} 7. Be3 {[%clk 0:02:46]}  d6 {[%clk 0:03:03]} 8. Nc3 {[%clk 0:02:47]}  Bd7 {[%clk 0:03:03]} 9. Be2 {[%clk 0:02:44]}  Nxd4 {[%clk 0:03:03]} 10. Bxd4 {[%clk 0:02:44]}  a5 {[%clk 0:03:04]} 11. b3 {[%clk 0:02:39]}  Bc6 {[%clk 0:03:05]} 12. Rc1 {[%clk 0:02:36]}  O-O {[%clk 0:03:05]} 13. O-O {[%clk 0:02:34]}  Nd7 {[%clk 0:03:06]} 14. Be3 {[%clk 0:02:33]}  Be5 {[%clk 0:03:06]} 15. Qd2 {[%clk 0:02:28]}  e6 {[%clk 0:03:06]} 16. Rfd1 {[%clk 0:02:24]}  Qh4 {[%clk 0:03:06]} 17. g3 {[%clk 0:02:17]}  Bxg3 {[%clk 0:03:05]} 18. hxg3 {[%clk 0:02:18]}  Qxg3+ {[%clk 0:03:06]} 19. Kf1 {[%clk 0:02:18]}  Qh3+ {[%clk 0:02:58]} 20. Ke1 {[%clk 0:02:18]}  Qh1+ {[%clk 0:02:56]} 21. Bf1 {[%clk 0:02:18]}  Qxf3 {[%clk 0:02:55]} 22. Qf2 {[%clk 0:02:11]}  Bxe4 {[%clk 0:02:51]} 23. Qxf3 {[%clk 0:02:07]}  Bxf3 {[%clk 0:02:52]} 24. Rxd6 {[%clk 0:02:07]}  Nf6 {[%clk 0:02:41]} 25. Bd4 {[%clk 0:01:58]}  Ng4 {[%clk 0:02:38]} 26. Be2 {[%clk 0:01:54]}  Bxe2 {[%clk 0:02:32]} 27. Kxe2 {[%clk 0:01:55]}  e5 {[%clk 0:02:28]} 28. Bb6 {[%clk 0:01:53]}  Nh6 {[%clk 0:02:11]} 29. Nd5 {[%clk 0:01:45]}  Nf5 {[%clk 0:02:09]} 30. Rd7 {[%clk 0:01:45]}  h5 {[%clk 0:01:57]} 31. Rg1 {[%clk 0:01:30]}  Kg7 {[%clk 0:01:36]} 32. Rxb7 {[%clk 0:01:21]}  h4 {[%clk 0:01:35]} 33. Kf3 {[%clk 0:01:09]}  h3 {[%clk 0:01:32]} 34. Rh1 {[%clk 0:01:07]}  Rh8 {[%clk 0:01:25]} 35. Ne3 {[%clk 0:00:51]}  e4+ {[%clk 0:00:56]} 36. Kf2 {[%clk 0:00:34]}  Rh4 {[%clk 0:00:56]} 37. Nxf5+ {[%clk 0:00:30]}  gxf5 {[%clk 0:00:57]} 38. Bd4+ {[%clk 0:00:31]}  Kg6 {[%clk 0:00:54]} 39. Rb6+ {[%clk 0:00:31]}  Kh5 {[%clk 0:00:36]} 40. Rf6 {[%clk 0:00:29]}  Rf4+ {[%clk 0:00:35]} 41. Ke2 {[%clk 0:00:26]}  Kg4 {[%clk 0:00:31]} 42. Rg1+ {[%clk 0:00:21]}  Kh5 {[%clk 0:00:28]} 43. Rxf7 {[%clk 0:00:20]}  Rg4 {[%clk 0:00:29]} 44. Rh7+ {[%clk 0:00:19]}  Kg6 {[%clk 0:00:25]} 45. Rxh3 {[%clk 0:00:19]}  Rd8 {[%clk 0:00:25]} 46. Be3 {[%clk 0:00:13]}  Rd3 {[%clk 0:00:17]} 47. Rxg4+ {[%clk 0:00:13]}  fxg4 {[%clk 0:00:16]} 48. Rh4 {[%clk 0:00:14]}  Kf5 {[%clk 0:00:11]} 49. Rh5+ {[%clk 0:00:14]}  Kf6 {[%clk 0:00:12]} 50. c5 {[%clk 0:00:15]}  Rc3 {[%clk 0:00:09]} 51. Bd4+ {[%clk 0:00:14]}  Kg6 {[%clk 0:00:09]} 52. Bxc3 {[%clk 0:00:15]}  Kxh5 {[%clk 0:00:10]} 53. c6 {[%clk 0:00:16]}  g3 {[%clk 0:00:10]} 54. c7 {[%clk 0:00:16]}  g2 {[%clk 0:00:11]} 55. Bd4 {[%clk 0:00:17]} 1-0


[Site "https://www.chess.com"]

[Event "Titled Tuesday Blitz June 6 Late 2023"]
[White "Martinez Ramirez, Lennis"]
[Black "Mei, Austin"]
[WhiteFideId "3509079"]
[BlackFideId "30948479"]
[WhiteElo "2410"]
[BlackElo "2125"]
[Result "1-0"]
[Round "7"]
[TimeControl "180+2"]
[Date "2023.06.07"]
[WhiteClock "0:00:17"]
[BlackClock "0:00:14"]
[Board "53"]

1. d4 {[%clk 0:02:54]}  Nf6 {[%clk 0:02:47]} 2. Bg5 {[%clk 0:02:53]}  c5 {[%clk 0:02:45]} 3. d5 {[%clk 0:02:51]}  d6 {[%clk 0:02:45]} 4. Nc3 {[%clk 0:02:51]}  h6 {[%clk 0:02:44]} 5. Bxf6 {[%clk 0:02:51]}  exf6 {[%clk 0:02:44]} 6. e4 {[%clk 0:02:52]}  g6 {[%clk 0:02:42]} 7. Bb5+ {[%clk 0:02:50]}  Nd7 {[%clk 0:02:42]} 8. a4 {[%clk 0:02:51]}  Bg7 {[%clk 0:02:41]} 9. Qf3 {[%clk 0:02:37]}  O-O {[%clk 0:02:40]} 10. Qg3 {[%clk 0:02:37]}  a6 {[%clk 0:02:35]} 11. Be2 {[%clk 0:02:35]}  Qb6 {[%clk 0:02:29]} 12. O-O-O {[%clk 0:02:32]}  c4 {[%clk 0:01:45]} 13. h4 {[%clk 0:02:27]}  Nc5 {[%clk 0:01:43]} 14. h5 {[%clk 0:02:26]}  g5 {[%clk 0:01:43]} 15. f4 {[%clk 0:02:06]}  Bd7 {[%clk 0:01:35]} 16. Bg4 {[%clk 0:02:00]}  Bxa4 {[%clk 0:01:25]} 17. Bf5 {[%clk 0:01:59]}  Bd7 {[%clk 0:01:00]} 18. Nf3 {[%clk 0:01:58]}  Bxf5 {[%clk 0:00:49]} 19. exf5 {[%clk 0:01:59]}  Kh7 {[%clk 0:00:49]} 20. Nd2 {[%clk 0:01:45]}  Qb4 {[%clk 0:00:45]} 21. Rhe1 {[%clk 0:01:42]}  Rfe8 {[%clk 0:00:44]} 22. Nde4 {[%clk 0:01:40]}  Nxe4 {[%clk 0:00:42]} 23. Nxe4 {[%clk 0:01:41]}  a5 {[%clk 0:00:19]} 24. fxg5 {[%clk 0:01:40]}  fxg5 {[%clk 0:00:19]} 25. f6 {[%clk 0:01:41]}  Bf8 {[%clk 0:00:18]} 26. Qg4 {[%clk 0:01:36]}  a4 {[%clk 0:00:18]} 27. Re3 {[%clk 0:01:26]}  a3 {[%clk 0:00:18]} 28. bxa3 {[%clk 0:01:18]}  Rxa3 {[%clk 0:00:18]} 29. Rxa3 {[%clk 0:01:18]}  Qxa3+ {[%clk 0:00:19]} 30. Kd2 {[%clk 0:01:18]}  Qa5+ {[%clk 0:00:17]} 31. Ke3 {[%clk 0:01:15]}  Qc3+ {[%clk 0:00:15]} 32. Kf2 {[%clk 0:00:55]}  Qxc2+ {[%clk 0:00:15]} 33. Ke3 {[%clk 0:00:51]}  Qb3+ {[%clk 0:00:14]} 34. Kd4 {[%clk 0:00:48]}  Qb6+ {[%clk 0:00:13]} 35. Kxc4 {[%clk 0:00:44]}  Qa6+ {[%clk 0:00:11]} 36. Kd4 {[%clk 0:00:43]}  Qa4+ {[%clk 0:00:11]} 37. Kd3 {[%clk 0:00:44]}  Kg8 {[%clk 0:00:09]} 38. Rc1 {[%clk 0:00:34]}  Qb3+ {[%clk 0:00:09]} 39. Nc3 {[%clk 0:00:28]}  Re5 {[%clk 0:00:04]} 40. Qc4 {[%clk 0:00:25]}  Qb2 {[%clk 0:00:04]} 41. Rc2 {[%clk 0:00:24]}  Qa1 {[%clk 0:00:04]} 42. Qa2 {[%clk 0:00:13]}  Qf1+ {[%clk 0:00:04]} 43. Re2 {[%clk 0:00:13]}  Qf5+ {[%clk 0:00:04]} 44. Kc4 {[%clk 0:00:12]}  Qxf6 {[%clk 0:00:05]} 45. Qd2 {[%clk 0:00:12]}  Qf4+ {[%clk 0:00:05]} 46. Qxf4 {[%clk 0:00:12]}  gxf4 {[%clk 0:00:06]} 47. Rxe5 {[%clk 0:00:12]}  dxe5 {[%clk 0:00:06]} 48. Ne4 {[%clk 0:00:13]}  f5 {[%clk 0:00:07]} 49. Nf6+ {[%clk 0:00:13]}  Kf7 {[%clk 0:00:07]} 50. Nd7 {[%clk 0:00:14]}  Ke7 {[%clk 0:00:07]} 51. Nxe5 {[%clk 0:00:14]}  Bg7 {[%clk 0:00:07]} 52. Ng6+ {[%clk 0:00:14]}  Kd6 {[%clk 0:00:08]} 53. Nxf4 {[%clk 0:00:15]}  Be5 {[%clk 0:00:08]} 54. Nd3 {[%clk 0:00:08]}  b5+ {[%clk 0:00:08]} 55. Kxb5 {[%clk 0:00:08]}  Kxd5 {[%clk 0:00:09]} 56. Ne1 {[%clk 0:00:07]}  Ke4 {[%clk 0:00:09]} 57. Nf3 {[%clk 0:00:08]}  Bf4 {[%clk 0:00:10]} 58. Kc6 {[%clk 0:00:08]}  Ke3 {[%clk 0:00:10]} 59. Kd7 {[%clk 0:00:08]}  Kf2 {[%clk 0:00:11]} 60. Nh4 {[%clk 0:00:08]}  Bg5 {[%clk 0:00:11]} 61. Nxf5 {[%clk 0:00:09]}  Kxg2 {[%clk 0:00:12]} 62. Ke6 {[%clk 0:00:09]}  Kh3 {[%clk 0:00:12]} 63. Ng7 {[%clk 0:00:10]}  Kg4 {[%clk 0:00:12]} 64. Kf7 {[%clk 0:00:11]}  Bd2 {[%clk 0:00:11]} 65. Kg6 {[%clk 0:00:12]}  Bc3 {[%clk 0:00:11]} 66. Nf5 {[%clk 0:00:13]}  Kf4 {[%clk 0:00:09]} 67. Nxh6 {[%clk 0:00:14]}  Ke5 {[%clk 0:00:09]} 68. Nf7+ {[%clk 0:00:14]}  Ke6 {[%clk 0:00:09]} 69. h6 {[%clk 0:00:15]}  Ke7 {[%clk 0:00:10]} 70. h7 {[%clk 0:00:14]}  Kf8 {[%clk 0:00:10]} 71. Nd6 {[%clk 0:00:14]}  Bb2 {[%clk 0:00:10]} 72. Ne4 {[%clk 0:00:15]}  Ba1 {[%clk 0:00:11]} 73. Ng5 {[%clk 0:00:15]}  Bb2 {[%clk 0:00:10]} 74. Ne6+ {[%clk 0:00:16]}  Ke7 {[%clk 0:00:10]} 75. Ng7 {[%clk 0:00:17]}  Bxg7 {[%clk 0:00:10]} 76. Kxg7 {[%clk 0:00:17]}  Ke6 {[%clk 0:00:11]} 77. h8=Q {[%clk 0:00:17]}  Kd5 {[%clk 0:00:12]} 78. Kf6 {[%clk 0:00:17]}  Kc4 {[%clk 0:00:13]} 79. Ke5 {[%clk 0:00:17]}  Kb3 {[%clk 0:00:14]} 80. Kd4 {[%clk 0:00:17]} 1-0


[Site "https://www.chess.com"]

[Event "Titled Tuesday Blitz June 6 Late 2023"]
[White "Yeritsyan, Hayk"]
[Black "Papp, Levente"]
[WhiteFideId "13307320"]
[BlackFideId "751243"]
[WhiteElo "2497"]
[BlackElo "2380"]
[Result "0-1"]
[Round "7"]
[TimeControl "180+2"]
[Date "2023.06.07"]
[WhiteClock "0:00:07"]
[BlackClock "0:00:11"]
[Board "56"]

1. d4 {[%clk 0:02:57]}  e6 {[%clk 0:03:00]} 2. Nf3 {[%clk 0:02:57]}  b6 {[%clk 0:03:00]} 3. e3 {[%clk 0:02:56]}  Bb7 {[%clk 0:03:01]} 4. Bd3 {[%clk 0:02:56]}  Nf6 {[%clk 0:03:01]} 5. Nbd2 {[%clk 0:02:56]}  Be7 {[%clk 0:02:59]} 6. c3 {[%clk 0:02:56]}  O-O {[%clk 0:02:58]} 7. O-O {[%clk 0:02:57]}  d5 {[%clk 0:02:54]} 8. Ne5 {[%clk 0:02:57]}  Nbd7 {[%clk 0:02:51]} 9. f4 {[%clk 0:02:57]}  Ne4 {[%clk 0:02:51]} 10. Nxd7 {[%clk 0:02:53]}  Qxd7 {[%clk 0:02:50]} 11. Nxe4 {[%clk 0:02:53]}  dxe4 {[%clk 0:02:51]} 12. Be2 {[%clk 0:02:54]}  c5 {[%clk 0:02:45]} 13. dxc5 {[%clk 0:02:37]}  Qc7 {[%clk 0:02:27]} 14. cxb6 {[%clk 0:02:11]}  axb6 {[%clk 0:02:28]} 15. Qc2 {[%clk 0:01:56]}  Bc5 {[%clk 0:02:21]} 16. Rb1 {[%clk 0:01:36]}  Rxa2 {[%clk 0:02:19]} 17. Bc4 {[%clk 0:00:35]}  Raa8 {[%clk 0:02:11]} 18. Qe2 {[%clk 0:00:29]}  Rac8 {[%clk 0:01:46]} 19. Bb5 {[%clk 0:00:16]}  Rfd8 {[%clk 0:01:43]} 20. b4 {[%clk 0:00:15]}  Be7 {[%clk 0:01:42]} 21. Bb2 {[%clk 0:00:14]}  Bd5 {[%clk 0:01:28]} 22. Rfd1 {[%clk 0:00:13]}  Bb3 {[%clk 0:01:28]} 23. Rxd8+ {[%clk 0:00:12]}  Rxd8 {[%clk 0:01:29]} 24. c4 {[%clk 0:00:10]}  Qa7 {[%clk 0:00:52]} 25. Bd4 {[%clk 0:00:08]}  Qa3 {[%clk 0:00:45]} 26. Qb2 {[%clk 0:00:06]}  Qxb2 {[%clk 0:00:28]} 27. Rxb2 {[%clk 0:00:07]}  Bd1 {[%clk 0:00:29]} 28. Bxb6 {[%clk 0:00:06]}  Ra8 {[%clk 0:00:28]} 29. Bd4 {[%clk 0:00:06]}  g5 {[%clk 0:00:25]} 30. g3 {[%clk 0:00:03]}  gxf4 {[%clk 0:00:26]} 31. exf4 {[%clk 0:00:04]}  Bf3 {[%clk 0:00:26]} 32. Kf2 {[%clk 0:00:04]}  Ra1 {[%clk 0:00:26]} 33. Be3 {[%clk 0:00:03]}  Rh1 {[%clk 0:00:23]} 34. Bd4 {[%clk 0:00:03]}  Rxh2+ {[%clk 0:00:20]} 35. Ke3 {[%clk 0:00:03]}  Rh1 {[%clk 0:00:21]} 36. c5 {[%clk 0:00:04]}  f6 {[%clk 0:00:14]} 37. c6 {[%clk 0:00:03]}  e5 {[%clk 0:00:14]} 38. Bc5 {[%clk 0:00:03]}  Bd8 {[%clk 0:00:12]} 39. Bd6 {[%clk 0:00:02]}  Bb6+ {[%clk 0:00:11]} 40. Bc5 {[%clk 0:00:03]}  Bc7 {[%clk 0:00:11]} 41. Rd2 {[%clk 0:00:02]}  exf4+ {[%clk 0:00:11]} 42. gxf4 {[%clk 0:00:02]}  Bg4 {[%clk 0:00:10]} 43. Rd7 {[%clk 0:00:01]}  Bxd7 {[%clk 0:00:09]} 44. cxd7 {[%clk 0:00:02]}  f5 {[%clk 0:00:08]} 45. Kd4 {[%clk 0:00:02]}  Rd1+ {[%clk 0:00:08]} 46. Ke3 {[%clk 0:00:02]}  Kf7 {[%clk 0:00:08]} 47. Bc4+ {[%clk 0:00:02]}  Kg7 {[%clk 0:00:08]} 48. b5 {[%clk 0:00:03]}  Rxd7 {[%clk 0:00:07]} 49. b6 {[%clk 0:00:03]}  Bd6 {[%clk 0:00:08]} 50. Bd4+ {[%clk 0:00:03]}  Kh6 {[%clk 0:00:08]} 51. Bd5 {[%clk 0:00:03]}  Bb8 {[%clk 0:00:08]} 52. b7 {[%clk 0:00:04]}  Rxd5 {[%clk 0:00:08]} 53. Be5 {[%clk 0:00:03]}  Bxe5 {[%clk 0:00:08]} 54. fxe5 {[%clk 0:00:04]}  Rb5 {[%clk 0:00:08]} 55. Kf4 {[%clk 0:00:05]}  Rxb7 {[%clk 0:00:09]} 56. Kxf5 {[%clk 0:00:05]}  Re7 {[%clk 0:00:09]} 57. Kxe4 {[%clk 0:00:06]}  Kg5 {[%clk 0:00:09]} 58. Kd5 {[%clk 0:00:06]}  Kf5 {[%clk 0:00:10]} 59. Kd6 {[%clk 0:00:07]}  Re6+ {[%clk 0:00:11]} 0-1


[Site "https://www.chess.com"]